Cogmind - Beta 17.1 @@@ ROGUE MODE // 2026.08.26 @ 23:15:29 Player: cd4337 Result: Destroyed by Y-45 Defender with Heavy Assault Rifle Performance ------------- Evolutions (2) 1000 Regions Visited (3) 600 Robots Destroyed (33) 165 Value Destroyed (1026) 1026 Prototype IDs (1) 20 Alien Tech Used (0) 0 Bonus (0) 0 TOTAL SCORE: 2811 Bonus ------- None Cogmind --------- Core Integrity 0/550 Matter 100/300 Energy 100/100 System Corruption 0% Temperature Warm (104) Movement Core (100) Ox1 Location -8/Materials Parts ------- > --- POWER (2) -------- (None) > --- PROPULSION (3) --- (None) > --- UTILITY (3) ------ Disposable Heat Sink Visual Processing Unit > --- WEAPON (3) ------- Particle Gun > --- INVENTORY (5) ---- Heat Sink Peak State ------------ > --- POWER ------------ Improved Ion Engine Improved Ion Engine > --- PROPULSION ------- Armored Wheel > --- UTILITY ---------- Disposable Heat Sink Small Storage Unit Hardened Light Armor Plating > --- WEAPON ----------- Heavy Assault Rifle Heavy Assault Rifle Assault Cannon > --- INVENTORY -------- Ion Engine Ion Engine Light Ion Engine Aluminum Leg Visual Processing Unit Light Armor Plating [Rating: 18] Favorites ----------- Power Improved Ion Engine Engine Improved Ion Engine Propulsion Armored Wheel Leg Aluminum Leg Wheel Armored Wheel Utility Small Storage Unit Device Disposable Heat Sink Storage Small Storage Unit Processor Visual Processing Unit Protection Hardened Light Armor Plating Weapon Heavy Assault Rifle Energy Gun Beam Rifle Ballistic Gun Heavy Assault Rifle Ballistic Cannon Assault Cannon Build | -11 -10 -9 -8 ------- Run | Yrd Mat Mat Mat Slots Evolved 4 | . . 2 2 Power 1 | . . . 1 Propulsion 1 | . . 1 . Utility 1 | . . 1 . Weapon 1 | . . . 1 Parts Attached 27 | 6 . 9 12 Power 5 | 1 . 1 3 Engine 5 | 1 . 1 3 Core . | . . . . Reactor . | . . . . Propulsion 5 | 2 . 1 2 Treads . | . . . . Leg 2 | . . . 2 Wheel 3 | 2 . 1 . Hover . | . . . . Flight . | . . . . Utility 6 | 1 . 3 2 Device 1 | . . 1 . Storage 1 | 1 . . . Processor 1 | . . . 1 Hackware . | . . . . Protection 3 | . . 2 1 Artifact . | . . . . Weapon 11 | 2 . 4 5 Energy Gun 3 | 1 . 1 1 Energy Cannon . | . . . . Ballistic Gun 7 | 1 . 3 3 Ballistic Cannon 1 | . . . 1 Launcher . | . . . . Special Weapon . | . . . . Impact Weapon . | . . . . Slashing Weapon . | . . . . Piercing Weapon . | . . . . Special Melee Weapon . | . . . . Unidentified Prototypes 1 | . . 1 . Parts Lost 24 | . 1 7 16 Power 5 | . . . 5 Propulsion 5 | . 1 1 3 Utility 4 | . . 1 3 Weapon 10 | . . 5 5 Highest Loss Streak 6 | . 1 2 6 To Critical Strikes 1 | . . . 1 Average Backups 3 | 2 1 4 4 Power 1 | 1 1 2 2 Propulsion . | . . . . Utility 1 | . . 1 1 Weapon . | . . . . Tool/Special . | . . . . Unused Backups 2 | . . 1 1 Power . | . . . . Propulsion . | . . . . Utility 1 | . . . 1 Weapon 1 | . . 1 . Tool/Special . | . . . . Average Slot Usage (%) 67 | . 74 68 60 Engine 12 | . 14 11 13 Wheel 9 | . 17 12 1 Device 7 | . . 9 9 Storage 10 | . 14 11 7 Protection 4 | . . 4 7 Energy Gun 7 | . 14 8 . Ballistic Gun 12 | . 14 11 12 Ballistic Cannon 1 | . . . 4 Peak Build Rating 18 | 6 6 13 18 Average Rating 9 | 3 5 10 11 On Entrance 6 | . 6 5 13 Avg Prop Armor Cover (%) . | . . . . Naked Turns . | . . . . Heaviest Build 32 | 13 13 24 32 Greatest Support 32 | 32 32 28 20 Greatest Overweight (x) 10 | 2 . 1 10 Average Overweight (x) . | . . . 4 Largest Inventory Capacity 8 | 8 8 8 8 Average Capacity 7 | 7 8 8 7 Most Carried 8 | 5 1 8 7 Average Carried 3 | 2 1 4 4 Final Capacity 8 | 8 8 8 5 Final Carried 7 | 1 1 7 1 Class Distribution -------------------- 71% | Mutant 20% | Scavenger-Mutant 8% | Scavenger-Tank Dominant Class ---------------- Mutant | -10/Materials Mutant | -9/Materials Mutant | -8/Materials Resources | -11 -10 -9 -8 ----------- Run | Yrd Mat Mat Mat Matter Collected 770 | 222 90 244 214 Remotely . | . . . . Salvage Created 1154 | . 140 569 445 Parts 69 | . 10 29 30 Haulers Intercepted . | . . . . Recyclers Shooed . | . . . . Parts Field Recycled . | . . . . Retrieved Matter . | . . . . Parts Self-Destructed . | . . . . Prevented . | . . . . Parts Restored . | . . . . Kills | -11 -10 -9 -8 ------- Run | Yrd Mat Mat Mat Combat Hostiles Destroyed 28 | . 5 10 13 Guns 25 | . 5 10 10 Cannons 3 | . . . 3 Classes Destroyed 7 | . 3 2 2 Builder 1 | . 1 . . Watcher 4 | . . 3 1 Swarmer 7 | . 3 . 4 Grunt 9 | . 2 4 3 Brawler 1 | . . . 1 Duelist 1 | . . . 1 Sentry 10 | . . 6 4 Best Kill Streak 6 | . 3 4 6 Combat Bots Only 6 | . 3 4 6 Max Kills in Single Turn 2 | . 1 1 2 Gunslinging . | . . . . Exploded . | . . . . Melee . | . . . . Uniques/NPCs Destroyed . | . . . . Combat | -11 -10 -9 -8 -------- Run | Yrd Mat Mat Mat Hostile Shots Fired 269 | . 36 67 166 Missed 61 | . 9 16 36 Hits 208 | . 27 51 130 Melee 5 | . . . 5 Projectile 203 | . 27 51 125 Critical Strikes 7 | . . 1 6 Damage Taken 2916 | . 252 757 1907 Core 762 | . 62 146 554 Absorbed by Shields . | . . . . Core Remaining (%) 79 | 100 75 63 . Volleys Fired 160 | . 20 56 84 Largest 3 | . 2 2 3 Hottest 83 | . 60 79 83 Shots Fired 267 | . 39 99 129 Gun 240 | . 39 99 102 Cannon 27 | . . . 27 Launcher . | . . . . Special . | . . . . Kinetic 199 | . 20 57 122 Thermal 68 | . 19 42 7 Explosive . | . . . . Electromagnetic . | . . . . Robot Hit Streak 17 | . 5 11 17 Robot Miss Streak 6 | . 4 6 4 Penetration Max . | . . . . Secondary Targets 2 | . 2 . . Max Gunslinging Chain 1 | . 1 . . Shots Hit Robots 174 | . 20 62 92 Core Hits 53 | . 8 20 25 Critical Kills 1 | . . . 1 Critical Parts Destroyed 3 | . . 1 2 Critical Strikes 7 | . . 3 4 Burn 2 | . . 2 . Destroy 4 | . . 1 3 Blast 1 | . . . 1 Melee Attacks . | . . . . Impact . | . . . . Slashing . | . . . . Piercing . | . . . . Sneak Attacks . | . . . . Combat Hostiles . | . . . . Follow-up Attacks . | . . . . Damage Inflicted 2625 | . 280 920 1425 Guns 2164 | . 280 920 964 Cannons 461 | . . . 461 Explosions . | . . . . Melee . | . . . . Ramming . | . . . . Kinetic 2059 | . 155 572 1332 Thermal 566 | . 125 348 93 Explosive . | . . . . Electromagnetic . | . . . . Impact . | . . . . Slashing . | . . . . Piercing . | . . . . Highest Corruption . | . . . . Average Corruption . | . . . . Corruption Purged . | . . . . Corruption Blocked . | . . . . Overload Shots . | . . . . Overflow Damage 17 | . . . 17 Projectiles 17 | . . . 17 Explosions . | . . . . Melee . | . . . . Knockbacks 4 | . . . 4 Impact . | . . . . Kinetic 4 | . . . 4 Secondary . | . . . . Self-Inflicted Damage . | . . . . Shots . | . . . . Rammed . | . . . . Targets Rammed . | . . . . Kicked . | . . . . Crushed . | . . . . Highest Temperature 194 | . 72 171 194 Average Temperature 53 | . 41 51 57 Received Heat Transfer 1020 | . 72 273 675 Siege Activations . | . . . . Martial Activations . | . . . . Shielding Activations . | . . . . Robots Disrupted . | . . . . Combat Hostiles . | . . . . Robots Corrupted . | . . . . Combat Hostiles . | . . . . Parts Fried . | . . . . Impact Corruptions . | . . . . Robots Melted . | . . . . Combat Hostiles . | . . . . Parts Melted 5 | . . 5 . Heat Transferred 1521 | . 275 1024 222 Parts Sabotaged . | . . . . Parts Stolen . | . . . . Parts Stripped . | . . . . Power Chain Reactions . | . . . . Alert | -11 -10 -9 -8 ------- Run | Yrd Mat Mat Mat Maximum Alert Level . | . . . . Low Security (%) 100 | 100 100 100 100 Level 1 . | . . . . Level 2 . | . . . . Level 3 . | . . . . Level 4 . | . . . . Level 5 . | . . . . High Security . | . . . . Max Security . | . . . . Peak Influence 145 | . 60 111 145 Initial 27 | . . 12 27 Average 52 | . 16 41 98 Influence Increases 848 | . 125 328 395 Destroy 0b10 Robot/C 560 | . 100 200 260 Destroy 0b10 Robot/NC 25 | . 5 15 5 Destroy Leader 168 | . 20 66 82 Successful Hack 2 | . . 2 . Destroy Structure 3 | . . . 3 Lose Combat Pursuer 90 | . . 45 45 Influence Decreases 784 | . 95 291 398 Entered New Map 58 | . . 18 40 Time Decay 516 | . 85 233 198 Lost Part 210 | . 10 40 160 Squads Dispatched 6 | . 1 . 5 Investigation . | . . . . Extermination . | . . . . Reinforcement 2 | . 1 . 1 Assault . | . . . . Garrison 4 | . . . 4 Intercept . | . . . . Searches Triggered . | . . . . Construction Impeded . | . . . . Haulers Reinforced . | . . . . Active Scanning Responses . | . . . . Cargo Convoy Interrupts . | . . . . Stealth | -11 -10 -9 -8 --------- Run | Yrd Mat Mat Mat Distress Signals 7 | . 1 4 2 Communications Jammed . | . . . . Distress Signals . | . . . . Times Spotted 45 | . 8 17 20 Peak Tracking Total 8 | . 4 6 8 Tactical Retreats 3 | . . 1 2 Traps | -11 -10 -9 -8 ------- Run | Yrd Mat Mat Mat Traps Triggered 1 | . . 1 . Indirectly . | . . . . Trap Hack Attempts . | . . . . Triggered . | . . . . Disarmed . | . . . . Reprogrammed . | . . . . Reused . | . . . . Traps Extracted . | . . . . Installed . | . . . . Triggered . | . . . . Machines | -11 -10 -9 -8 ---------- Run | Yrd Mat Mat Mat Machines Disabled . | . . . . Max in Single Turn . | . . . . Machines Repaired . | . . . . Machines Dismantled . | . . . . Machines Sabotaged . | . . . . Overloaded Fab Kills . | . . . . Hacking | -11 -10 -9 -8 --------- Run | Yrd Mat Mat Mat Machines Accessed 8 | . 2 6 . Terminals 6 | . 1 5 . Fabricators . | . . . . Repair Stations . | . . . . Recycling Units 1 | . 1 . . Scanalyzers 1 | . . 1 . Garrison Access . | . . . . Total Hacks 19 | . 3 16 . Successful 12 | . 2 10 . Failed 6 | . 1 5 . Catastrophic 1 | . . 1 . Database Lockouts 1 | . . 1 . Manual . | . . . . Terminals 11 | . 2 9 . Fabricators . | . . . . Repair Stations . | . . . . Recycling Units 1 | . 1 . . Scanalyzers 7 | . . 7 . Garrison Access . | . . . . Terminal Hacks 6 | . 2 4 . Alert Level 1 | . . 1 . Locate Traps 2 | . 1 1 . Dispatch Records 1 | . . 1 . Zone Layout 2 | . 1 1 . Fabricator Hacks . | . . . . Repair Station Hacks . | . . . . Recycling Unit Hacks . | . . . . Scanalyzer 6 | . . 6 . Insert Component 1 | . . 1 . Analyze 1 | . . 1 . Retrieve Study 4 | . . 4 . Garrison Access Hacks . | . . . . Unauthorized Hacks . | . . . . Terminals . | . . . . Fabricators . | . . . . Repair Stations . | . . . . Recycling Units . | . . . . Scanalyzers . | . . . . Garrison Access . | . . . . Data Cores Recovered . | . . . . Used . | . . . . Hacking Detections 4 | . 1 3 . Full Trace Events . | . . . . Feedback Events . | . . . . Feedback Blocked . | . . . . Robot Schematics Acquired . | . . . . Robots Built . | . . . . Authchips . | . . . . Time . | . . . . Total Robot Build Rating . | . . . . Part Schematics Acquired . | . . . . Parts Built . | . . . . Authchips . | . . . . Time . | . . . . Total Part Build Rating . | . . . . Part Studies Acquired 4 | . . 4 . Parts Repaired . | . . . . Time . | . . . . Parts Recycled . | . . . . Recycled Matter . | . . . . Retrieved Matter . | . . . . Retrieved Components . | . . . . Parts Scanalyzed 1 | . . 1 . Part Schematics Acquired . | . . . . Parts Damaged . | . . . . Bothacking | -11 -10 -9 -8 ------------ Run | Yrd Mat Mat Mat Used RIF Installer . | . . . . Robots Hacked . | . . . . Non-combat . | . . . . Combat . | . . . . Robot Hacks Applied . | . . . . Relay Couplers Released . | . . . . Fabnet Peak Effective % . | . . . . Robots Rewired . | . . . . Allies Hacked . | . . . . Hacks Repelled . | . . . . Allies | -11 -10 -9 -8 -------- Run | Yrd Mat Mat Mat Total Allies . | . . . . Largest Group . | . . . . Highest-Rated Group . | . . . . Highest-Rated Ally . | . . . . Total Orders . | . . . . Ally Attacks . | . . . . Total Damage . | . . . . Kills . | . . . . Allies Corrupted . | . . . . Allies Melted . | . . . . Intel | -11 -10 -9 -8 ------- Run | Yrd Mat Mat Mat Active Infowar (turns) . | . . . . Robot Analysis Total . | . . . . Derelict Logs Recovered . | . . . . Drone Launches . | . . . . Drone Recoveries . | . . . . Exploration | -11 -10 -9 -8 ------------- Run | Yrd Mat Mat Mat Turns Passed 1317 | 59 245 607 406 Spaces Moved 630 | 37 155 373 65 Core 56 | 23 . . 33 Treads . | . . . . Legs 3 | . . . 3 Wheels 571 | 14 155 373 29 Hover . | . . . . Flight . | . . . . Fastest Speed 50 | 50 100 95 50 Average Speed 119 | 74 100 103 285 Slowest Speed 550 | 150 100 105 550 Overloaded Moves . | . . . . Propulsion Burnouts . | . . . . Robots Hopped . | . . . . Potential Cave-ins . | . . . . Cave-ins Triggered . | . . . . Exploration Rate (%) 24 | 3 41 43 10 Regions Visited 3 Branch Regions . Pre-discovered Areas . | . . . . Known Exits Taken . | . . . . Unknown Exits Taken 3 | 1 1 1 . Scrap Searched . | . . . . Spaces Dug . | . . . . Terrain Destroyed 1 | . . . 1 Melee . | . . . . Projectile 1 | . . . 1 AOE . | . . . . Terrain Rammed . | . . . . Walls Destroyed . | . . . . Machines Disabled . | . . . . Actions | -11 -10 -9 -8 --------- Run | Yrd Mat Mat Mat Total 938 | 67 206 494 171 Wait 96 | 20 32 41 3 Move 627 | 36 154 372 65 Hop . | . . . . Pick Up 26 | 5 . 15 6 Fast Attach 3 | 2 . . 1 Attach 25 | 4 . 9 12 Detach . | . . . . Swap 1 | . . 1 . Drop . | . . . . Fire 160 | . 20 56 84 Melee . | . . . . Ram . | . . . . Kick . | . . . . Crush . | . . . . Escape Stasis . | . . . . Rewire . | . . . . Trap . | . . . . Miscellaneous . | . . . . Route ------- -11/Scrapyard -10/Materials (discovered 2 exits: *Mat / [*Min]) -9/Materials -8/Materials History --------- Turn | Location | Event 17 | -11/Scrapyard | Discovered new exit (range 15) 60 | -11/Scrapyard | Entered Materials 145 | -10/Materials | Discovered new exit (range 5) 284 | -10/Materials | Discovered new exit (range 13) 305 | -10/Materials | Entered another Materials area 305 | -9/Materials | Evolved 2 slots: Propulsion x1, Utility x1 308 | -9/Materials | Build established: Mutant 616 | -9/Materials | Central database locked down 883 | -9/Materials | Discovered new exit (range 16) 912 | -9/Materials | Entered another Materials area 912 | -8/Materials | Evolved 2 slots: Power x1, Weapon x1 948 | -8/Materials | Garrison activated, responded to threat 1032 | -8/Materials | Lost 4 parts (1p1n2w) 1219 | -8/Materials | Core integrity fell below 50% 1264 | -8/Materials | Lost 6 parts (2p2u2w) 1278 | -8/Materials | Garrison activated, responded to threat 1304 | -8/Materials | Core integrity fell below 20% 1318 | -8/Materials | Destroyed by Y-45 Defender with Heavy Assault Rifle Last Messages --------------- 01278_ W-25 Informer calls for garrison support. 01278_ ALERT: Activating Garrison Access M001. 01279_ Y-45 Defender emerges from the garrison. 01279_ Lgt. Armor Plating destroyed. 01279_ Critical hit (Burn: +37). 01279_ K-01 Serf collects debris. 01280_ W-25 Informer destroyed. 01282_ Critical hit (Burn: +37). 01284_ Y-45 Defender suffers critical hit (Destroy). 01284_ Destroyed Imp. Ion Engine. 01285_ K-01 Serf collects debris. 01291_ Lgt. Ion Engine destroyed. 01291_ Aluminum Leg destroyed. 01300_ Hvy. Assault Rifle+ destroyed. 01300_ Aluminum Leg destroyed. 01301_ Acquired Particle Gun. 01310_ Y-45 Defender destroyed. 01313_ Ion Engine+ destroyed. 01314_ K-01 Serf collects debris. Map ----- +----------------------------------------------------+ | ??????????????????????????????????????? | | ??????????????????????????????????????? | | ??????????????????????????????????????? | | ??????????????????????????????????????? | | ??????????????????????????????????????? | | ??????????????????????????????????????? | | ??????????????????????????????????????? | | ??????????????????????????????????????? | | ??????????????????????????????????????? | | ????????????????????????????????????? | | ????????????????????????????????????? | | #???????????????????????????????????? | | #???????????????????????????????????? | | #???????????????????????????????????? | | #???????????????????????????????????? | | #???????????????????????????????????? | | #???????????????????########????????? | | +???????????????????# #????????? | | #??????????????????## "" #????????? | | #????????????????? ## "G #????????? | | #???????????????? ## "" #????????? | | #??????????????? ??? ?????????? | | ###############+##????/ %=???#??????? | | + # *#######+### #??????? | | ### / !%+ !%%!%%% [ #??????? | | #?# =# =!%Y=%%@ k #??????? | | ###?#= / # #######;## + """ ?? | | ????# ## #### =!!# #? ?? | | ????# """ """ ## #??# % *=#? #??????? | | ????# """ """ ## #??# [ " #?? ??????? | | ????# """ """ ## ####% "" #??? ?????? | | ????############ !+% "" #???##????? | | ????????########+#####= #????????? | | ???????# #########????????? | | ???????# #????????????????? | | ???????# #????????????????? | | ???????# #????????????????? | | ???????# ! #????????????????? | | ???????# #????????????????? | | ???????###############????????????????? | | | | | | | | | | | | | | | | | | | | | +----------------------------------------------------+ Best States ------------- Heat Dissipation 31 Coolant Potential 50 Energy Generation 23 Energy Capacity 430 Matter Stores 300 Matter Capacity 300 Sight Range 16 Terrain Scan Density 10 Armor Coverage 150 Evasion (%) 50 Item Schematics ----------------- None Robot Schematics ------------------ None Fabricated ------------ Nothing Repaired ---------- Nothing Studied --------- Imp. Ion Engine | -9/Materials | Hacked Hvy. Assault Rifle | -9/Materials | Hacked Beam Rifle | -9/Materials | Hacked Ion Engine | -9/Materials | Hacked Alien Tech Used ----------------- None Achievements -------------- Item+ Challenges ------------ None Game ------ Seed HoverZhirovInterface Manual? 0 Play Time 00:21:31 Cumulative 11.7 hours Start 2026.08.26 @ 22:58:27 End 2026.08.26 @ 23:15:29 Sessions 1 Manual Loads 0 Difficulty Rogue Special Mode None Game No. 30 Rogue 30 Adventurer 0 Explorer 0 Win Type - Total 0 Types 0/0/0/0/0/0/0/0/0/0 Lore% 8 Gallery% 10 Achievement% 8 Wizard Run 0 Options --------- Layout 1 ASCII 0 Keyboard 0 Movement Mouse Keybinds 0 Fullscreen 1 Font 32/SmallcapsGlow Map View 50x35 Zoom Use 0% Tactical HUD 1 Map Filters NONE Filters NONE Steam 1 RUN: 4fd3cbe7-170d-47cd-934f-aa4d56ca8a50